Cogmind - Beta 14 *** ADVENTURER MODE // 2024.08.13 @ 01:51:27 Player: Plaidstone Result: Destroyed by as-99949 with Assembled Heavy Rifle Performance ------------- Evolutions (0) 0 Regions Visited (2) 400 Robots Destroyed (28) 140 Value Destroyed (778) 778 Prototype IDs (2) 40 Alien Tech Used (0) 0 Bonus (50) 50 TOTAL SCORE: 1408 Bonus ------- Follower Combat Kills 50 Cogmind --------- Core Integrity 0/250 Matter 290/300 Energy 250/250 System Corruption 0% Temperature Cool (90) Movement Treading (240) Ox1 Location -10/Mines Parts ------- > --- POWER (1) -------- Ion Engine > --- PROPULSION (2) --- Light Treads Compact Wheel > --- UTILITY (2) ------ Medium Storage Unit Sensor Array > --- WEAPON (2) ------- Medium Laser Beam Rifle > --- INVENTORY (10) --- Light Treads Light Treads Improved Heat Sink Beam Rifle Beam Rifle Beam Rifle Mining Laser Peak State ------------ > --- POWER ------------ Ion Engine > --- PROPULSION ------- Compact Wheel Compact Wheel > --- UTILITY ---------- Medium Storage Unit Sensor Array > --- WEAPON ----------- Beam Rifle Particle Gun > --- INVENTORY -------- Ion Engine Ion Engine Light Treads Light Treads Light Treads Heat Sink Medium Laser Medium Laser Medium Laser Beam Cannon [Rating: 10] Favorites ----------- Power Ion Engine Engine Ion Engine Propulsion Compact Wheel Treads Light Treads Wheel Compact Wheel Utility Sensor Array Device Sensor Array Storage Medium Storage Unit Weapon Medium Laser Energy Gun Medium Laser Build | -11 -10 -10 ------- Run | Yrd Mat Min Slots Evolved . | . . . Power . | . . . Propulsion . | . . . Utility . | . . . Weapon . | . . . Parts Attached 30 | 8 16 6 Power 8 | 1 4 3 Engine 8 | 1 4 3 Core . | . . . Reactor . | . . . Propulsion 8 | 4 2 2 Treads 2 | 1 . 1 Leg . | . . . Wheel 6 | 3 2 1 Hover . | . . . Flight . | . . . Utility 4 | 1 3 . Device 2 | . 2 . Storage 2 | 1 1 . Processor . | . . . Hackware . | . . . Protection . | . . . Artifact . | . . . Weapon 10 | 2 7 1 Energy Gun 10 | 2 7 1 Energy Cannon . | . . . Ballistic Gun . | . . . Ballistic Cannon . | . . . Launcher . | . . . Special Weapon . | . . . Impact Weapon . | . . . Slashing Weapon . | . . . Piercing Weapon . | . . . Special Melee Weapon . | . . . Unidentified Prototypes . | . . . Parts Lost 5 | . 1 4 Power 1 | . . 1 Propulsion 3 | . 1 2 Utility . | . . . Weapon 1 | . . 1 Highest Loss Streak 4 | . 1 4 To Critical Strikes . | . . . Average Slot Usage (%) 97 | . 97 96 Engine 14 | . 14 14 Wheel 25 | . 26 19 Device 13 | . 13 14 Storage 14 | . 14 14 Energy Gun 27 | . 27 28 Peak Build Rating 10 | 6 10 9 Average Rating 7 | 3 7 8 On Entrance 4 | . 6 8 Naked Turns . | . . . Heaviest Build 22 | 13 22 21 Greatest Support 32 | 26 32 32 Greatest Overweight (x) 1 | . . 1 Average Overweight (x) . | . . . Largest Inventory Capacity 10 | 8 10 10 Average Capacity 9 | 6 9 10 Most Carried 10 | 5 10 10 Average Carried 8 | 4 9 8 Final Capacity 10 | 8 10 10 Final Carried 10 | 4 10 7 Class Distribution -------------------- 85% | Mutant 14% | Scavenger-Mutant Dominant Class ---------------- Mutant | -10/Materials Mutant | -10/Mines Resources | -11 -10 -10 ----------- Run | Yrd Mat Min Matter Collected 475 | 248 187 40 Remotely . | . . . Salvage Created 1017 | . 844 173 Parts 49 | . 42 7 Haulers Intercepted 2 | . 2 . Recyclers Shooed 1 | . . 1 Parts Field Recycled . | . . . Retrieved Matter . | . . . Parts Self-Destructed . | . . . Prevented . | . . . Kills | -11 -10 -10 ------- Run | Yrd Mat Min Combat Hostiles Destroyed 20 | . 16 4 Guns 18 | . 14 4 Classes Destroyed 6 | . 5 1 Hauler 2 | . 2 . Recycler 3 | . 2 1 Watcher 3 | . 3 . Swarmer 3 | . 3 . Grunt 15 | . 13 2 Demolisher 2 | . . 2 Best Kill Streak 6 | . 6 3 Combat Bots Only 6 | . 6 2 Max Kills in Single Turn 2 | . 2 1 Gunslinging 1 | . 1 . Exploded . | . . . Melee . | . . . Uniques/NPCs Destroyed . | . . . Combat | -11 -10 -10 -------- Run | Yrd Mat Min Hostile Shots Fired 93 | . 56 37 Missed 24 | . 15 9 Damage Taken 887 | . 381 506 Core 256 | . 127 129 Absorbed by Shields . | . . . Ignored by Resistances 261 | . 117 144 Regen/Repaired (Parts) 8 | . 8 . Core Remaining (%) 100 | 100 . . Volleys Fired 77 | . 57 20 Largest 2 | . 2 2 Hottest 115 | . 115 106 Shots Fired 143 | . 105 38 Gun 143 | . 105 38 Cannon . | . . . Launcher . | . . . Special . | . . . Kinetic . | . . . Thermal 143 | . 105 38 Explosive . | . . . Electromagnetic . | . . . Robot Hit Streak 44 | . 44 8 Robot Miss Streak 2 | . 2 2 Penetration Max . | . . . Secondary Targets 6 | . 5 1 Max Gunslinging Chain 1 | . 1 1 Shots Hit Robots 121 | . 90 31 Core Hits 51 | . 36 15 Critical Kills . | . . . Critical Parts Destroyed . | . . . Critical Strikes 12 | . 9 3 Burn 12 | . 9 3 Melee Attacks . | . . . Impact . | . . . Slashing . | . . . Piercing . | . . . Sneak Attacks . | . . . Combat Hostiles . | . . . Follow-up Attacks . | . . . Damage Inflicted 1643 | . 1216 427 Guns 1643 | . 1216 427 Cannons . | . . . Explosions . | . . . Melee . | . . . Ramming . | . . . Kinetic . | . . . Thermal 1643 | . 1216 427 Explosive . | . . . Electromagnetic . | . . . Impact . | . . . Slashing . | . . . Piercing . | . . . Highest Corruption . | . . . Average Corruption . | . . . Corruption Purged . | . . . Corruption Blocked . | . . . Overload Shots . | . . . Overflow Damage . | . . . Projectiles . | . . . Explosions . | . . . Melee . | . . . Knockbacks . | . . . Impact . | . . . Kinetic . | . . . Secondary . | . . . Self-Inflicted Damage . | . . . Shots . | . . . Rammed . | . . . Targets Rammed . | . . . Kicked . | . . . Crushed . | . . . Highest Temperature 358 | . 357 358 Average Temperature 147 | . 139 172 Received Heat Transfer 351 | . 267 84 Effects 7 | . 4 3 Shutdowns 1 | . . 1 Energy Bleed 2 | . 1 1 Interference 4 | . 3 1 Siege Activations . | . . . Robots Corrupted . | . . . Combat Hostiles . | . . . Parts Fried . | . . . Impact Corruptions . | . . . Robots Melted 2 | . 2 . Combat Hostiles 2 | . 2 . Parts Melted 12 | . 8 4 Heat Transferred 5365 | . 3959 1406 Parts Sabotaged . | . . . Parts Stolen . | . . . Parts Stripped . | . . . Power Chain Reactions . | . . . Alert | -11 -10 -10 ------- Run | Yrd Mat Min Peak Influence 298 | . 298 111 Initial . | . . . Average 101 | . 111 68 Maximum Alert Level 1 | . 1 . Low Security (%) 82 | 100 79 100 Level 1 17 | . 20 . Level 2 . | . . . Level 3 . | . . . Level 4 . | . . . Level 5 . | . . . High Security . | . . . Max Security . | . . . Squads Dispatched 4 | . 3 1 Investigation 4 | . 3 1 Extermination . | . . . Reinforcement . | . . . Assault . | . . . Garrison . | . . . Intercept . | . . . Searches Triggered . | . . . Construction Impeded . | . . . Haulers Reinforced . | . . . Active Scanning Responses . | . . . Cargo Convoy Interrupts . | . . . Stealth | -11 -10 -10 --------- Run | Yrd Mat Min Distress Signals 2 | . 1 1 Communications Jammed . | . . . Distress Signals . | . . . Times Spotted 34 | . 23 11 Peak Tracking Total 9 | . 4 9 Tactical Retreats 2 | . 2 . Traps | -11 -10 -10 ------- Run | Yrd Mat Min Traps Triggered 1 | . 1 . Indirectly . | . . . Trap Hack Attempts . | . . . Triggered . | . . . Disarmed . | . . . Reprogrammed . | . . . Reused . | . . . Traps Extracted . | . . . Installed . | . . . Triggered . | . . . Machines | -11 -10 -10 ---------- Run | Yrd Mat Min Machines Disabled 1 | . 1 . Max in Single Turn 1 | . 1 . Machines Repaired . | . . . Machines Dismantled . | . . . Machines Sabotaged . | . . . Overloaded Fab Kills . | . . . Hacking | -11 -10 -10 --------- Run | Yrd Mat Min Machines Accessed 11 | . 10 1 Terminals 9 | . 8 1 Fabricators . | . . . Repair Stations 1 | . 1 . Recycling Units 1 | . 1 . Scanalyzers . | . . . Garrison Access . | . . . Total Hacks 50 | . 45 5 Successful 36 | . 32 4 Failed 14 | . 13 1 Catastrophic 1 | . . 1 Database Lockouts . | . . . Manual 36 | . 32 4 Terminals 43 | . 38 5 Fabricators . | . . . Repair Stations 2 | . 2 . Recycling Units 5 | . 5 . Scanalyzers . | . . . Garrison Access . | . . . Terminal Hacks 15 | . 14 1 Record 1 | . . 1 Robot Analysis 3 | . 3 . Prototype ID Bank 1 | . 1 . Emergency Access Points 2 | . 2 . Alert Level 1 | . 1 . Unreport Threat 1 | . 1 . Locate Traps 3 | . 3 . Dispatch Records 1 | . 1 . Hauler Manifests 1 | . 1 . Zone Layout 1 | . 1 . Fabricator Hacks . | . . . Repair Station Hacks 2 | . 2 . Scan Component 1 | . 1 . Repair 1 | . 1 . Recycling Unit Hacks 1 | . 1 . Report Inventory 1 | . 1 . Scanalyzer . | . . . Garrison Access Hacks . | . . . Unauthorized Hacks 18 | . 15 3 Terminals 15 | . 12 3 Botnet 8 | . 7 1 Skim 6 | . 5 1 Search 1 | . . 1 Fabricators . | . . . Repair Stations . | . . . Recycling Units 3 | . 3 . Monitor 1 | . 1 . Recyclers 1 | . 1 . Tunnel 1 | . 1 . Scanalyzers . | . . . Garrison Access . | . . . Data Cores Recovered . | . . . Used . | . . . Hacking Detections 11 | . 10 1 Full Trace Events 3 | . 3 . Feedback Events . | . . . Feedback Blocked . | . . . Robot Schematics Acquired . | . . . Robots Built . | . . . Authchips . | . . . Time . | . . . Total Robot Build Rating . | . . . Part Schematics Acquired . | . . . Parts Built . | . . . Authchips . | . . . Time . | . . . Total Part Build Rating . | . . . Parts Repaired 1 | . 1 . Time 26 | . 26 . Parts Recycled . | . . . Recycled Matter . | . . . Retrieved Matter . | . . . Retrieved Components . | . . . Parts Scanalyzed . | . . . Part Schematics Acquired . | . . . Parts Damaged . | . . . Bothacking | -11 -10 -10 ------------ Run | Yrd Mat Min Used RIF Installer . | . . . Robots Hacked . | . . . Non-combat . | . . . Combat . | . . . Robot Hacks Applied . | . . . Relay Couplers Released . | . . . Fabnet Peak Effective % . | . . . Robots Rewired . | . . . Allies Hacked . | . . . Hacks Repelled . | . . . Allies | -11 -10 -10 -------- Run | Yrd Mat Min Total Allies 1 | . . 1 Largest Group 1 | . . 1 Highest-Rated Group 31 | . . 31 Highest-Rated Ally 31 | . . 31 Total Orders . | . . . Ally Attacks 14 | . . 14 Total Damage 253 | . . 253 Kills 3 | . . 3 Allies Corrupted . | . . . Allies Melted . | . . . Intel | -11 -10 -10 ------- Run | Yrd Mat Min Robot Analysis Total 2 | . 2 . Derelict Logs Recovered . | . . . Drone Launches . | . . . Drone Recoveries . | . . . Exploration | -11 -10 -10 ------------- Run | Yrd Mat Min Turns Passed 1478 | 52 1224 202 Spaces Moved 1071 | 45 919 107 Core 15 | 15 . . Treads 12 | . . 12 Legs . | . . . Wheels 1044 | 30 919 95 Hover . | . . . Flight . | . . . Fastest Speed 50 | 50 90 100 Average Speed 100 | 75 99 117 Slowest Speed 240 | 90 100 240 Overloaded Moves . | . . . Propulsion Burnouts . | . . . Robots Hopped . | . . . Cave-ins Triggered . | . . . Exploration Rate (%) 40 | 3 98 21 Regions Visited 2 Branch Regions 1 Pre-discovered Areas 3 | . 3 . Known Exits Taken 1 | . 1 . Unknown Exits Taken 1 | 1 . . Scrap Searched . | . . . Spaces Dug . | . . . Terrain Destroyed . | . . . Melee . | . . . Projectile . | . . . AOE . | . . . Terrain Rammed . | . . . Walls Destroyed . | . . . Machines Disabled . | . . . Actions | -11 -10 -10 --------- Run | Yrd Mat Min Total 1338 | 60 1133 145 Wait 114 | . 107 7 Move 1069 | 44 918 107 Hop . | . . . Pick Up 27 | 7 17 3 Fast Attach 7 | 4 3 . Attach 8 | 3 1 4 Detach . | . . . Swap 15 | 1 12 2 Drop 21 | 1 18 2 Fire 77 | . 57 20 Melee . | . . . Ram . | . . . Kick . | . . . Crush . | . . . Escape Stasis . | . . . Rewire . | . . . Trap . | . . . Miscellaneous . | . . . Route ------- -11/Scrapyard -10/Materials (discovered 6 exits: *Mat x3 / *Min x2 / Sub) -10/Mines (discovered 2 exits: *Mat x2) History --------- Turn | Location | Event 5 | -11/Scrapyard | Discovered new exit (range 15) 53 | -11/Scrapyard | Entered Materials 320 | -10/Materials | Build established: Mutant 329 | -10/Materials | Repaired Com. Wheel 536 | -10/Materials | Discovered new exit (range 13) 764 | -10/Materials | Discovered new exit (range 15) 999 | -10/Materials | Identified exit to Mines 999 | -10/Materials | Discovered exit to Mines (range 6) 1029 | -10/Materials | Learned location of 2 exits from Subcaves 1043 | -10/Materials | Discovered new exit (range 16) 1050 | -10/Materials | Identified exit to Materials 1050 | -10/Materials | Identified exit to Subcaves 1063 | -10/Materials | Learned location of 1 exit from Storage 1066 | -10/Materials | Learned location of 2 exits from Subcaves 1068 | -10/Materials | Learned location of 1 exit from Storage 1070 | -10/Materials | Learned 4 Subcaves zone layouts 1074 | -10/Materials | Core integrity fell below 50% 1277 | -10/Materials | Entered Mines 1279 | -10/Mines | Met a Derelict bent on vengeance 1280 | -10/Mines | Received a Mining Laser from a helpful Derelict 1337 | -10/Mines | Received a Rocket Launcher from a helpful Derelict 1356 | -10/Mines | Assembled infested the area 1405 | -10/Mines | Core integrity fell below 20% 1439 | -10/Mines | Lost 4 parts (1p2n1w) 1479 | -10/Mines | Destroyed by as-99949 with Assembled Heavy Rifle Last Messages --------------- 01440_ K-01 Serf collects debris. 01440_ U-05 Engineer lays Concrete. 01441_ U-05 Engineer builds a Wall. 01441_ K-01 Serf collects debris. 01442_ R-06 Scavenger collects Com. Wheel. 01443_ Acquired Imp. Heat Sink. 01443_ K-01 Serf collects debris. 01444_ Dropped Heat Sink. 01444_ K-01 Serf collects debris. 01444_ U-05 Engineer lays Concrete. 01447_ K-01 Serf collects debris. 01447_ U-05 Engineer builds a Wall. 01448_ K-01 Serf collects debris. 01448_ R-06 Scavenger collects Heat Sink. 01451_ K-01 Serf collects debris. 01451_ Acquired Com. Wheel. 01451_ U-05 Engineer lays Concrete. 01451_ R-06 Scavenger collects Aluminum Leg. 01452_ U-05 Engineer lays Concrete. 01455_ K-01 Serf collects debris. Map ----- +----------------------------------------------------+ | ??????????## #### #### #???????? | | ???????????# ### ##????????????? | | ???????????## ##??###?????????????? | | ????????????####### ##???????????????????? | | ??????????????????# #????????????????????? | | ??????????????????# #????????????????????? | | ?????????????????## #####????????????????? | | ?????????????????# #????????????????? | | ????????????????## ### #????????????????? | | ???????????????## ##????????????????????? | | ?????????????### #?????????????????????? | | ????????????## =##????????????????????? | | ????????????# % #??????????